fUSD/lending_fUSD_20250101
["ID","MTS","AMOUNT","RATE_DAILY","PERIOD"]
[347342143,1735713041751,-1166.05,0.00011037,2]
[347342144,1735713041760,-4178.11,0.00011037,2]
[347342145,1735713041769,-654.2,0.00011037,2]
[347342146,1735713041778,-500.0,0.00011037,2]
[347342147,1735713041787,-500.0,0.00011037,2]
[347342148,1735713041796,-2161.17,0.00011037,2]
[347342149,1735713041805,-3040.34,0.00011037,2]
[347342150,1735713041814,-2334.29,0.00011037,2]
[347342151,1735713041823,-666.14,0.00011037,2]
[347342152,1735713041832,-500.0,0.00011037,2]
[347342153,1735713041841,-500.0,0.00011037,2]
[347342154,1735713041851,-766.39,0.00011037,2]
[347342155,1735713041860,-1872.23,0.00011037,2]
[347342156,1735713041872,-500.0,0.00011037,2]
[347342157,1735713041882,-785.56,0.00011037,2]
[347342158,1735713041892,-2184.76,0.00011037,2]
[347342159,1735713041901,-500.0,0.00011037,2]
[347342160,1735713041910,-500.0,0.00011037,2]
[347342161,1735713041919,-643.02,0.00011037,2]
[347342162,1735713041928,-1289.72,0.00011037,2]
[347342163,1735713041938,-500.0,0.00011037,2]
[347342164,1735713041947,-500.0,0.00011037,2]
[347342165,1735713041956,-455.98399401,0.00011037,2]
[347342166,1735713041965,-500.0,0.00011037,2]
[347342167,1735713041975,-500.0,0.00011037,2]
[347342168,1735713041985,-611.05,0.00011037,2]
[347342169,1735713041994,-655.39,0.00011037,2]
[347342170,1735713042003,-500.0,0.00011037,2]
[347342171,1735713042012,-500.0,0.00011037,2]
[347342172,1735713042021,-1811.64,0.00011037,2]
[347342173,1735713042030,-500.0,0.00011037,2]
[347342174,1735713042039,-500.0,0.00011037,2]
[347342175,1735713042053,-551.25,0.00011037,2]
[347342176,1735713042062,-500.0,0.00011037,2]
[347342177,1735713042071,-500.0,0.00011037,2]
[347342178,1735713042080,-1474.67,0.00011037,2]
[347342179,1735713042090,-500.0,0.00011037,2]
[347342180,1735713042099,-500.0,0.00011037,2]
[347342181,1735713042108,-500.0,0.00011037,2]
[347342182,1735713042118,-1618.54,0.00011037,2]
[347342183,1735713042129,-777.37,0.00011037,2]
[347342184,1735713042138,-896.3,0.00011037,2]
[347342185,1735713042147,-500.0,0.00011037,2]
[347342186,1735713042157,-2161.39,0.00011037,2]
[347342187,1735713042166,-540.19,0.00011037,2]
[347342188,1735713042177,-500.0,0.00011037,2]
[347342189,1735713042187,-975.93,0.00011037,2]
[347342190,1735713042198,-500.0,0.00011037,2]
[347342191,1735713042207,-1062.36,0.00011037,2]
[347342192,1735713042216,-949.28,0.00011037,2]
[347342193,1735713042226,-1345.07,0.00011037,2]
[347342194,1735713042235,-1211.26,0.00011037,2]
[347342195,1735713042244,-737.29,0.00011037,2]
[347342196,1735713042253,-500.0,0.00011037,2]
[347342197,1735713042263,-628.29,0.00011037,2]
[347342198,1735713042272,-1384.51,0.00011037,2]
[347342199,1735713042281,-1224.37,0.00011037,2]
[347342200,1735713042290,-2082.45,0.00011037,2]
[347342201,1735713042299,-13627.0,0.00011037,2]
[347342202,1735713042309,-1082.36,0.00011037,2]
[347342203,1735713042318,-393.89951503,0.00011037,2]
[347342204,1735713042327,-1254.87,0.00011037,2]
[347342205,1735713042336,-3453.59,0.00011037,2]
[347342206,1735713042345,-500.0,0.00011037,2]
[347342207,1735713042354,-500.0,0.00011037,2]
[347342208,1735713042363,-774.22,0.00011037,2]
[347342209,1735713042375,-1851.16,0.00011037,2]
[347342210,1735713042384,-713.0,0.00011037,2]
[347342211,1735713042393,-556.77,0.00011037,2]
[347342212,1735713042402,-500.0,0.00011037,2]
[347342213,1735713042412,-500.0,0.00011037,2]
[347342214,1735713042421,-219.92728324,0.00011037,2]
[347342215,1735713042430,-1384.98,0.00011037,2]
[347342216,1735713042442,-5664.81,0.00011037,2]
[347342217,1735713042451,-3133.62,0.00011037,2]
[347342218,1735713042461,-1120.84,0.00011037,2]
[347342219,1735713042471,-500.0,0.00011037,2]
[347342220,1735713042480,-500.0,0.00011037,2]
[347342221,1735713042489,-500.0,0.00011037,2]
[347342222,1735713042499,-500.0,0.00011037,2]
[347342223,1735713042509,-800.53,0.00011037,2]
[347342224,1735713042519,-500.0,0.00011037,2]
[347342225,1735713042528,-500.0,0.00011037,2]
[347342226,1735713042537,-500.0,0.00011037,2]
[347342227,1735713042547,-500.0,0.00011037,2]
[347342228,1735713042556,-232.81032273,0.00011037,2]
[347342229,1735713042565,-20280.31,0.00011037,2]
[347342230,1735713042575,-658.62,0.00011037,2]
[347342231,1735713042584,-500.0,0.00011037,2]
[347342232,1735713042594,-29999.99,0.00011037,2]
[347342233,1735713042603,-500.27004658,0.00011037,2]
[347342234,1735713042612,-500.0,0.00011037,2]
[347342235,1735713042622,-500.0,0.00011037,2]
[347342236,1735713042631,-500.0,0.00011037,2]
[347342237,1735713042640,-500.0,0.00011037,2]
[347342238,1735713042650,-500.0,0.00011037,2]
[347342239,1735713042659,-500.0,0.00011037,2]
[347342240,1735713042669,-500.0,0.00011037,2]
[347342241,1735713042679,-500.0,0.00011037,2]
[347342242,1735713042688,-500.0,0.00011037,2]
[347342243,1735713042697,-500.0,0.00011037,2]
[347342244,1735713042707,-1001.69,0.00011037,2]
[347342245,1735713042716,-1812.62,0.00011037,2]
[347342246,1735713042736,-1139.16,0.00011037,2]
[347342247,1735713042746,-574.78,0.00011037,2]
[347342248,1735713042756,-734.79,0.00011037,2]
[347342249,1735713042767,-500.0,0.00011037,2]
[347342250,1735713042778,-1334.62,0.00011037,2]
[347342251,1735713042788,-500.0,0.00011037,2]
[347342252,1735713042798,-500.0,0.00011037,2]
[347342253,1735713042808,-500.0,0.00011037,2]
[347342254,1735713042818,-500.0,0.00011037,2]
[347342255,1735713042828,-986.76,0.00011037,2]
[347342256,1735713042838,-887.81,0.00011037,2]
[347342257,1735713042848,-500.0,0.00011037,2]
[347342258,1735713042858,-500.0,0.00011037,2]
[347342259,1735713042869,-500.0,0.00011037,2]
[347342260,1735713042879,-500.0,0.00011037,2]
[347342261,1735713042889,-747.35,0.00011037,2]
[347342263,1735713042899,-500.0,0.00011037,2]
[347342264,1735713042909,-1986.56,0.00011037,2]
[347342265,1735713042918,-525.15,0.00011037,2]
[347342266,1735713042928,-2651.49,0.00011037,2]
[347342267,1735713042940,-1070.82,0.00011037,2]
[347342268,1735713042951,-500.0,0.00011037,2]
[347342269,1735713042963,-1337.52,0.00011037,2]
[347342270,1735713042974,-500.0,0.00011037,2]
[347342271,1735713042984,-877.36,0.00011037,2]
[347342272,1735713042994,-1554.85,0.00011037,2]
[347342273,1735713043004,-844.76,0.00011037,2]
[347342276,1735713043015,-1280.4,0.00011037,2]
[347342277,1735713043025,-500.0,0.00011037,2]
[347342278,1735713043035,-500.0,0.00011037,2]
[347342279,1735713043048,-500.0,0.00011037,2]
[347342280,1735713043058,-500.0,0.00011037,2]
[347342281,1735713043068,-904.06,0.00011037,2]
[347342282,1735713043078,-500.0,0.00011037,2]
[347342283,1735713043089,-500.0,0.00011037,2]
[347342284,1735713043098,-1910.06,0.00011037,2]
[347342285,1735713043108,-505.38,0.00011037,2]
[347342286,1735713043117,-1949.74,0.00011037,2]
[347342287,1735713043127,-1590.87,0.00011037,2]
[347342288,1735713043137,-500.0,0.00011037,2]
[347342289,1735713043147,-500.0,0.00011037,2]
[347342290,1735713043157,-500.0,0.00011037,2]
[347342291,1735713043168,-584.47,0.00011037,2]
[347342292,1735713043178,-803.18,0.00011037,2]
[347342293,1735713043188,-500.0,0.00011037,2]
[347342294,1735713043198,-718.31,0.00011037,2]
[347342295,1735713043208,-500.0,0.00011037,2]
[347342296,1735713043218,-500.0,0.00011037,2]
[347342297,1735713043228,-861.54,0.00011037,2]
[347342298,1735713043238,-500.0,0.00011037,2]
[347342299,1735713043249,-1559.63,0.00011037,2]
[347342300,1735713043258,-772.39,0.00011037,2]
[347342301,1735713043268,-500.0,0.00011037,2]
[347342302,1735713043278,-2566.52,0.00011037,2]
[347342303,1735713043288,-2712.59,0.00011037,2]
[347342304,1735713043298,-500.0,0.00011037,2]
[347342305,1735713043308,-736.22,0.00011037,2]
[347342306,1735713043319,-773.57,0.00011037,2]
[347342307,1735713043328,-738.37,0.00011037,2]
[347342309,1735713043338,-500.0,0.00011037,2]
[347342311,1735713043348,-500.0,0.00011037,2]
[347342312,1735713043359,-691.72,0.00011037,2]
[347342313,1735713043368,-4067.29,0.00011037,2]
[347342314,1735713043379,-500.0,0.00011037,2]
[347342315,1735713043388,-1219.77,0.00011037,2]
[347342316,1735713043399,-1920.34,0.00011037,2]
[347342317,1735713043408,-500.0,0.00011037,2]
[347342318,1735713043418,-500.0,0.00011037,2]
[347342319,1735713043428,-500.0,0.00011037,2]
[347342320,1735713043438,-4105.21,0.00011037,2]
[347342321,1735713043448,-738.06,0.00011037,2]
[347342323,1735713043458,-2114.59,0.00011037,2]
[347342325,1735713043469,-500.0,0.00011037,2]
[347342327,1735713043478,-11914.1,0.00011037,2]
[347342328,1735713043488,-1148.95,0.00011037,2]
[347342330,1735713043498,-2299.57,0.00011037,2]
[347342332,1735713043507,-500.0,0.00011037,2]
[347342336,1735713043517,-3094.69,0.00011037,2]
[347342340,1735713043527,-1185.04,0.00011037,2]
[347342344,1735713043536,-500.0,0.00011037,2]
[347342348,1735713043546,-1060.94,0.00011037,2]
[347342352,1735713043556,-500.0,0.00011037,2]
[347342354,1735713043565,-500.0,0.00011037,2]
[347342356,1735713043575,-500.0,0.00011037,2]
[347342358,1735713043584,-747.81,0.00011037,2]
[347342361,1735713043594,-157.39603995,0.00011037,2]
[347342364,1735713043605,-500.0,0.00011037,2]
[347342366,1735713043615,-500.0,0.00011037,2]
[347342367,1735713043626,-1260.65,0.00011037,2]
[347342368,1735713043636,-500.0,0.00011037,2]
[347342369,1735713043647,-500.0,0.00011037,2]
[347342370,1735713043657,-528.54,0.00011037,2]
[347342371,1735713043666,-500.0,0.00011037,2]
[347342372,1735713043676,-500.0,0.00011037,2]
[347342373,1735713043686,-500.0,0.00011037,2]
[347342374,1735713043696,-500.0,0.00011037,2]
[347342375,1735713043706,-1969.06,0.00011037,2]
[347342376,1735713043716,-547.24,0.00011037,2]
[347342377,1735713043726,-500.0,0.00011037,2]
[347342378,1735713043736,-717.0,0.00011037,2]
[347342379,1735713043745,-500.0,0.00011037,2]
[347342380,1735713043755,-3230.74,0.00011037,2]
[347342381,1735713043765,-500.0,0.00011037,2]
[347342383,1735713043774,-1721.18,0.00011037,2]
[347342384,1735713043784,-863.95,0.00011037,2]
[347342386,1735713043795,-1063.21,0.00011037,2]
[347342388,1735713043804,-500.0,0.00011037,2]
[347342390,1735713043814,-500.0,0.00011037,2]
[347342392,1735713043824,-500.0,0.00011037,2]
[347342394,1735713043834,-500.0,0.00011037,2]
[347342396,1735713043844,-500.0,0.00011037,2]
[347342398,1735713043853,-4209.45,0.00011037,2]
[347342400,1735713043863,-659.36,0.00011037,2]
[347342403,1735713043874,-500.0,0.00011037,2]
[347342405,1735713043884,-948.41,0.00011037,2]
[347342407,1735713043894,-500.0,0.00011037,2]
[347342409,1735713043904,-698.08,0.00011037,2]
[347342411,1735713043913,-500.0,0.00011037,2]
[347342413,1735713043923,-500.0,0.00011037,2]
[347342415,1735713043932,-514.29,0.00011037,2]
[347342417,1735713043942,-574.18,0.00011037,2]
[347342419,1735713043952,-500.0,0.00011037,2]
[347342421,1735713043962,-657.75,0.00011037,2]
[347342423,1735713043971,-2864.63,0.00011037,2]
[347342425,1735713043980,-500.0,0.00011037,2]
[347342427,1735713043990,-2161.74,0.00011037,2]
[347342429,1735713044000,-2887.46,0.00011037,2]
[347342431,1735713044009,-585.98,0.00011037,2]
[347342433,1735713044019,-2711.43,0.00011037,2]
[347342435,1735713044030,-2302.2,0.00011037,2]
[347342437,1735713044040,-500.0,0.00011037,2]
[347342439,1735713044053,-500.0,0.00011037,2]
[347342441,1735713044063,-1888.62,0.00011037,2]
[347342444,1735713044072,-1357.76,0.00011037,2]
[347342446,1735713044083,-500.0,0.00011037,2]
[347342448,1735713044093,-500.0,0.00011037,2]
[347342450,1735713044103,-3987.53,0.00011037,2]
[347342452,1735713044112,-500.0,0.00011037,2]
[347342454,1735713044121,-500.0,0.00011037,2]
[347342456,1735713044131,-500.0,0.00011037,2]
[347342458,1735713044141,-192.82736786,0.00011037,2]
[347342460,1735713044150,-793.43,0.00011037,2]
[347342462,1735713044160,-500.0,0.00011037,2]
[347342464,1735713044170,-1298.27,0.00011037,2]
[347342466,1735713044179,-1369.66,0.00011037,2]
[347342468,1735713044190,-500.0,0.00011037,2]
[347342470,1735713044199,-500.0,0.00011037,2]
[347342472,1735713044210,-500.0,0.00011037,2]
[347342474,1735713044219,-540.17,0.00011037,2]
[347342476,1735713044230,-500.0,0.00011037,2]
[347342478,1735713044240,-1584.19,0.00011037,2]
[347342480,1735713044250,-7052.84,0.00011037,2]
[347342482,1735713044260,-961.84,0.00011037,2]
[347342484,1735713044270,-500.0,0.00011037,2]
[347342486,1735713044279,-500.0,0.00011037,2]
[347342488,1735713044289,-1898.0,0.00011037,2]
[347342490,1735713044299,-1285.99,0.00011037,2]
[347342493,1735713044308,-500.0,0.00011037,2]
[347342495,1735713044318,-3548.05,0.00011037,2]
[347342497,1735713044328,-500.0,0.00011037,2]
[347342499,1735713044338,-500.0,0.00011037,2]
[347342501,1735713044347,-507.9,0.00011037,2]
[347342503,1735713044357,-500.0,0.00011037,2]
[347342505,1735713044367,-4020.66,0.00011037,2]
[347342507,1735713044378,-8721.02,0.00011037,2]
[347342509,1735713044388,-716.34,0.00011037,2]
[347342511,1735713044399,-561.72176413,0.00011037,2]
[347342513,1735713044409,-500.0,0.00011037,2]
[347342515,1735713044419,-737.68,0.00011037,2]
[347342517,1735713044430,-500.0,0.00011037,2]
[347342519,1735713044441,-1237.95,0.00011037,2]
[347342521,1735713044451,-500.0,0.00011037,2]
[347342523,1735713044461,-2274.75,0.00011037,2]
[347342525,1735713044471,-500.0,0.00011037,2]
[347342528,1735713044482,-500.0,0.00011037,2]
[347342530,1735713044491,-500.0,0.00011037,2]
[347342532,1735713044501,-2888.57,0.00011037,2]
[347342534,1735713044511,-649.87,0.00011037,2]
[347342536,1735713044522,-500.0,0.00011037,2]
[347342538,1735713044532,-500.0,0.00011037,2]
[347342540,1735713044542,-1509.17,0.00011037,2]
[347342542,1735713044552,-312.76155896,0.00011037,2]
[347342544,1735713044562,-500.0,0.00011037,2]
[347342546,1735713044572,-764.62,0.00011037,2]
[347342548,1735713044582,-5882.47,0.00011037,2]
[347342550,1735713044594,-500.0,0.00011037,2]
[347342582,1735713044887,-500.0,0.00011037,2]
[347342584,1735713044896,-1113.85,0.00011037,2]
[347342586,1735713044906,-500.0,0.00011037,2]
[347342588,1735713044916,-500.0,0.00011037,2]
[347342590,1735713044925,-529.45224248,0.00011037,2]
[347342592,1735713044935,-3541.35,0.00011037,2]
[347342594,1735713044944,-2701.91,0.00011037,2]
[347342596,1735713044954,-1408.76,0.00011037,2]
[347342598,1735713044963,-500.0,0.00011037,2]
[347342600,1735713044972,-500.0,0.00011037,2]
[347342602,1735713044983,-2809.54,0.00011038,2]
[347342604,1735713044991,-1754.49,0.00011038,2]
[347342606,1735713045001,-2623.8,0.00011038,2]
[347342608,1735713045010,-3928.1,0.00011038,2]
[347342610,1735713045019,-500.0,0.00011038,2]
[347342612,1735713045028,-1810.67,0.00011038,2]
[347342614,1735713045038,-2417.17,0.00011038,2]
[347342616,1735713045050,-500.0,0.00011038,2]
[347342618,1735713045060,-1046.87,0.00011038,2]
[347342620,1735713045069,-500.0,0.00011038,2]
[347342622,1735713045079,-500.0,0.00011038,2]
[347342624,1735713045091,-2945.91,0.00011038,2]
[347342626,1735713045101,-649.78,0.00011038,2]
[347342628,1735713045110,-3887.52,0.00011038,2]
[347342630,1735713045120,-1354.25,0.00011038,2]
[347342632,1735713045129,-521.42,0.00011038,2]
[347342634,1735713045139,-2534.13,0.00011038,2]
[347342636,1735713045148,-500.0,0.00011038,2]
[347342638,1735713045157,-500.0,0.00011038,2]
[347342640,1735713045167,-920.31,0.00011038,2]
[347342642,1735713045176,-1021.03,0.00011038,2]
[347342644,1735713045186,-2548.56,0.00011038,2]
[347342646,1735713045195,-634.32,0.00011038,2]
[347342648,1735713045204,-4017.96,0.00011038,2]
[347342650,1735713045213,-643.34,0.00011038,2]
[347342651,1735713045223,-2528.01,0.00011038,2]
[347342652,1735713045232,-981.82,0.00011038,2]
[347342653,1735713045241,-500.0,0.00011038,2]
[347342654,1735713045250,-2424.71,0.00011038,2]
[347342655,1735713045260,-500.0,0.00011038,2]
[347342656,1735713045269,-500.0,0.00011038,2]
[347342657,1735713045279,-2780.45,0.00011038,2]
[347342658,1735713045288,-2621.96,0.00011038,2]
[347342659,1735713045299,-3006.48,0.00011038,2]
[347342660,1735713045308,-2358.17,0.00011038,2]
[347342661,1735713045317,-3990.91,0.00011038,2]
[347342662,1735713045327,-998.78,0.00011038,2]
[347342663,1735713045336,-4285.56,0.00011038,2]
[347342664,1735713045346,-561.44,0.00011038,2]
[347342665,1735713045355,-500.0,0.00011038,2]
[347342666,1735713045365,-500.0,0.00011038,2]
[347342667,1735713045375,-500.0,0.00011038,2]
[347342669,1735713045384,-500.0,0.00011038,2]
[347342671,1735713045394,-2024.26,0.00011038,2]
[347342673,1735713045404,-500.0,0.00011038,2]
[347342674,1735713045413,-2469.16,0.00011038,2]
[347342676,1735713045423,-764.15,0.00011038,2]
[347342678,1735713045432,-3012.59,0.00011038,2]
[347342680,1735713045442,-3528.04,0.00011038,2]
[347342682,1735713045451,-630.04,0.00011038,2]
[347342683,1735713045461,-1962.07,0.00011038,2]
[347342684,1735713045470,-686.19,0.00011038,2]
[347342685,1735713045480,-749.75,0.00011038,2]
[347342686,1735713045489,-3755.0,0.00011038,2]
[347342687,1735713045499,-2902.2,0.00011038,2]
[347342688,1735713045508,-1101.39,0.00011038,2]
[347342689,1735713045518,-1884.32,0.00011038,2]
[347342690,1735713045527,-1438.36,0.00011038,2]
[347342691,1735713045536,-2279.24,0.00011038,2]
[347342692,1735713045546,-3131.23,0.00011038,2]
[347342693,1735713045556,-1198.52,0.00011038,2]
[347342694,1735713045564,-583.04,0.00011038,2]
[347342695,1735713045574,-3359.72,0.00011038,2]
[347342696,1735713045584,-675.53,0.00011038,2]
[347342697,1735713045592,-1649.7,0.00011038,2]
[347342698,1735713045602,-2216.85,0.00011038,2]
[347342699,1735713045611,-1010.11,0.00011038,2]
[347342700,1735713045620,-2180.3,0.00011038,2]
[347342701,1735713045629,-657.52,0.00011038,2]
[347342702,1735713045639,-2371.2,0.00011038,2]
[347342703,1735713045648,-2312.31,0.00011038,2]
[347342704,1735713045657,-2198.58,0.00011038,2]
[347342705,1735713045667,-1902.04,0.00011038,2]
[347342706,1735713045676,-2114.98,0.00011038,2]
[347342707,1735713045686,-1728.08,0.00011038,2]
[347342708,1735713045696,-500.0,0.00011038,2]
[347342709,1735713045707,-2668.96,0.00011038,2]
[347342710,1735713045716,-1963.93,0.00011038,2]
[347342711,1735713045725,-4264.68,0.00011038,2]
[347342712,1735713045734,-1530.2,0.00011038,2]
[347342713,1735713045744,-500.0,0.00011038,2]
[347342714,1735713045753,-2330.11,0.00011038,2]
[347342715,1735713045762,-1408.48,0.00011038,2]
[347342716,1735713045771,-848.66,0.00011038,2]
[347342717,1735713045781,-6862.57,0.00011038,2]
[347342718,1735713045789,-5086.13,0.00011038,2]
[347342719,1735713045799,-2631.67,0.00011038,2]
[347342720,1735713045808,-3750.97,0.00011038,2]
[347342721,1735713045817,-1029.67,0.00011038,2]
[347342722,1735713045826,-1212.68,0.00011038,2]
[347342723,1735713045835,-6153.66,0.00011038,2]
[347342724,1735713045845,-500.0,0.00011038,2]
[347342725,1735713045854,-2333.3,0.00011038,2]
[347342726,1735713045863,-866.46,0.00011038,2]
[347342727,1735713045872,-2733.02,0.00011038,2]
[347342728,1735713045883,-3771.57,0.00011038,2]
[347342729,1735713045892,-809.14,0.00011038,2]
[347342730,1735713045902,-2428.91,0.00011038,2]
[347342731,1735713045911,-2484.91,0.00011038,2]
[347342732,1735713045920,-3351.61,0.00011038,2]
[347342734,1735713045930,-1984.34,0.00011038,2]
[347342736,1735713045939,-2739.36,0.00011038,2]
[347342737,1735713045948,-1610.48,0.00011038,2]
[347342738,1735713045958,-2536.29,0.00011038,2]
[347342739,1735713045967,-3278.76,0.00011038,2]
[347342740,1735713045976,-2281.83,0.00011038,2]
[347342741,1735713045985,-3298.38,0.00011038,2]
[347342742,1735713045995,-500.0,0.00011038,2]
[347342743,1735713046004,-2834.04,0.00011038,2]
[347342744,1735713046013,-8366.7,0.00011038,2]
[347342745,1735713046023,-6858.73,0.00011038,2]
[347342746,1735713046032,-922.64,0.00011038,2]
[347342747,1735713046041,-3167.34,0.00011038,2]
[347342748,1735713046054,-2401.9,0.00011038,2]
[347342749,1735713046063,-666.0,0.00011038,2]
[347342750,1735713046072,-1079.05,0.00011038,2]
[347342751,1735713046083,-38606.0,0.00011038,2]
[347342752,1735713046092,-500.0,0.00011038,2]
[347342753,1735713046101,-4685.06,0.00011038,2]
[347342754,1735713046110,-2236.29,0.00011038,2]
[347342755,1735713046120,-10289.45,0.00011038,2]
[347342756,1735713046131,-2036.27,0.00011038,2]
[347342757,1735713046140,-3770.24,0.00011038,2]
[347342758,1735713046149,-934.94,0.00011038,2]
[347342759,1735713046158,-15061.76,0.00011038,2]
[347342760,1735713046168,-3113.32,0.00011038,2]
[347342761,1735713046178,-17517.26,0.00011038,2]
[347342762,1735713046187,-2429.58,0.00011038,2]
[347342763,1735713046197,-3006.51,0.00011038,2]
[347342764,1735713046206,-9597.76,0.00011038,2]
[347342765,1735713046215,-500.0,0.00011038,2]
[347342766,1735713046225,-2210.04,0.00011038,2]
[347342767,1735713046234,-2396.94,0.00011038,2]
[347342768,1735713046243,-1948.14,0.00011038,2]
[347342769,1735713046252,-18086.29,0.00011038,2]
[347342770,1735713046262,-3662.87,0.00011038,2]
[347342771,1735713046271,-2852.69,0.00011038,2]
[347342772,1735713046280,-950.0,0.00011039,2]
[347342773,1735713046289,-813.51,0.00011039,2]
[347342774,1735713046299,-1808.77,0.00011039,2]
[347342775,1735713046308,-500.0,0.00011039,2]
[347342776,1735713046317,-500.0,0.00011039,2]
[347342777,1735713046326,-500.0,0.00011039,2]
[347342778,1735713046336,-778.09,0.00011039,2]
[347342779,1735713046345,-500.0,0.00011039,2]
[347342780,1735713046354,-500.0,0.00011039,2]
[347342781,1735713046364,-1568.77,0.00011039,2]
[347342782,1735713046374,-1540.22,0.00011039,2]
[347342783,1735713046383,-500.0,0.00011039,2]
[347342784,1735713046393,-717.48,0.00011039,2]
[347342785,1735713046402,-500.0,0.00011039,2]
[347342786,1735713046411,-500.0,0.00011039,2]
[347342787,1735713046420,-500.0,0.00011039,2]
[347342788,1735713046429,-500.0,0.00011039,2]
[347342789,1735713046439,-1547.76,0.00011039,2]
[347342790,1735713046448,-500.0,0.00011039,2]
[347342791,1735713046457,-2099.37,0.00011039,2]
[347342792,1735713046466,-500.0,0.00011039,2]
[347342793,1735713046475,-593.44753245,0.00011039,2]
[347342794,1735713046484,-1452.65,0.00011039,2]
[347342795,1735713046493,-500.0,0.00011039,2]
[347342796,1735713046503,-500.0,0.00011039,2]
[347342797,1735713046512,-500.0,0.00011039,2]
[347342798,1735713046522,-1480.46,0.00011039,2]
[347342799,1735713046531,-261.22627116,0.00011039,2]
[347342800,1735713046541,-500.0,0.00011039,2]
[347342801,1735713046551,-500.0,0.00011039,2]
[347342802,1735713046560,-1326.62,0.00011039,2]
[347342803,1735713046570,-500.0,0.00011039,2]
[347342804,1735713046579,-500.0,0.00011039,2]
[347342805,1735713046588,-500.0,0.00011039,2]
[347342806,1735713046598,-1137.4,0.00011039,2]
[347342807,1735713046607,-829.35,0.00011039,2]
[347342808,1735713046616,-500.0,0.00011039,2]
[347342809,1735713046625,-2069.82,0.00011039,2]
[347342810,1735713046634,-525.73,0.00011039,2]
[347342811,1735713046643,-500.0,0.00011039,2]
[347342812,1735713046652,-1000.0,0.00011039,2]
[347342813,1735713046662,-678.89,0.00011039,2]
[347342814,1735713046671,-2731.87,0.00011039,2]
[347342815,1735713046680,-500.0,0.00011039,2]
[347342816,1735713046690,-530.13434866,0.00011039,2]
[347342817,1735713046699,-500.0,0.00011039,2]
[347342818,1735713046708,-997.49,0.00011039,2]
[347342819,1735713046717,-612.81,0.00011039,2]
[347342820,1735713046727,-500.0,0.00011039,2]
[347342821,1735713046738,-572.9058425,0.00011039,2]
[347342822,1735713046747,-1418.23,0.00011039,2]
[347342823,1735713046756,-500.0,0.00011039,2]
[347342824,1735713046767,-1951.54,0.00011039,2]
[347342825,1735713046777,-500.0,0.00011039,2]
[347342826,1735713046786,-500.0,0.00011039,2]
[347342827,1735713046795,-500.0,0.00011039,2]
[347342828,1735713046804,-500.0,0.00011039,2]
[347342829,1735713046814,-500.0,0.00011039,2]
[347342830,1735713046824,-500.0,0.00011039,2]
[347342831,1735713046833,-953.1,0.00011039,2]
[347342832,1735713046843,-568.13,0.00011039,2]
[347342833,1735713046852,-500.0,0.00011039,2]
[347342834,1735713046861,-500.0,0.00011039,2]
[347342835,1735713046870,-500.0,0.00011039,2]